Workbook

Sheet ①漢字入力
A2: ④修正 | C2: =R2&S2 -> 2年 | D2: 年 | G2: 最後に習った漢字 | L2: ① | N2: 歩 | Q2: =VLOOKUP(N2,$O$5:$P$1033,2,FALSE) -> 2.046 | R2: =INT(Q2) -> 2 | S2: 年 | T2: =(Q2-R2)*1000 -> 46 | U2: 番目に習う漢字
B5: 古 | C5: =VLOOKUP(B5,$O$5:$P$1033,2,FALSE) -> 2.107 | D5: =1000*C5 -> 2107 | E5: =IF(D5="","",VLOOKUP(D5,②漢字データ!$A$2:$H$1496,6,0)) -> 十 | F5: =VLOOKUP(E5,$O$5:$P$1060,2,FALSE) -> 1.013 | G5: =IF(F5>$Q$2,"×","〇") -> 〇 | H5: =IF(D5="","",VLOOKUP(D5,②漢字データ!$A$2:$H$1496,8,0)) -> 口 | I5: =VLOOKUP(H5,$O$5:$P$1060,2,FALSE) -> 1.067 | J5: =IF(I5>$Q$2,"×","〇") -> 〇 | O5: 木 | P5: 1.001 | Q5: =IF(P5>$Q$2,"0","1") -> 1
A6: 1 | B6: 歩 | C6: 2.046 | D6: 2046 | E6: =IF(D6="","",VLOOKUP(D6,②漢字データ!$A$2:$H$1496,6,0)) -> 止 | F6: 2.11 | G6: × | H6: =IF(D6="","",VLOOKUP(D6,②漢字データ!$A$2:$H$1496,8,0)) -> 少 | I6: 2.144 | J6: × | O6: 大 | P6: 1.002 | Q6: =IF(P6>$Q$2,"0","1") -> 1
A7: 2 | B7: 姉 | C7: 2.04 | D7: 2040 | E7: =IF(D7="","",VLOOKUP(D7,②漢字データ!$A$2:$H$1496,6,0)) -> 女 | F7: 1.017 | G7: 〇 | H7: =IF(D7="","",VLOOKUP(D7,②漢字データ!$A$2:$H$1496,8,0)) -> 市 | I7: 2.135 | J7: × | O7: 小 | P7: 1.003 | Q7: 1
A8: 3 | B8: 切 | C8: 2.037 | D8: 2037 | E8: =IF(D8="","",VLOOKUP(D8,②漢字データ!$A$2:$H$1496,6,0)) -> 七 | F8: 1.01 | G8: 〇 | H8: =IF(D8="","",VLOOKUP(D8,②漢字データ!$A$2:$H$1496,8,0)) -> 刀 | I8: 2.036 | J8: 〇 | O8: 一 | P8: 1.004 | Q8: 1
A9: 4 | B9: 社 | C9: 2.035 | D9: 2035 | E9: =IF(D9="","",VLOOKUP(D9,②漢字データ!$A$2:$H$1496,6,0)) -> ネ | H9: =IF(D9="","",VLOOKUP(D9,②漢字データ!$A$2:$H$1496,8,0)) -> 土 | I9: 1.055 | J9: 〇 | O9: 二 | P9: 1.005 | Q9: 1
A10: 5 | B10: 体 | C10: 2.03 | D10: 2030 | E10: =IF(D10="","",VLOOKUP(D10,②漢字データ!$A$2:$H$1496,6,0)) -> イ | H10: =IF(D10="","",VLOOKUP(D10,②漢字データ!$A$2:$H$1496,8,0)) -> 本 | I10: 1.042 | J10: 〇 | O10: 三 | P10: 1.006 | Q10: 1
A11: 6 | B11: 多 | C11: 2.026 | D11: 2026 | E11: =IF(D11="","",VLOOKUP(D11,②漢字データ!$A$2:$H$1496,6,0)) -> タ | H11: =IF(D11="","",VLOOKUP(D11,②漢字データ!$A$2:$H$1496,8,0)) -> タ | M11: ② | O11: 四 | P11: 1.007 | Q11: 1 | U11: 止 | V11: + | W11: 少 | AA11: ＝ | AB11: 歩
K12: =IF(K16=12,"○","×") -> × | O12: 五 | P12: 1.008 | Q12: 1 | U12: 女 | V12: + | W12: 市 | AA12: ＝ | AB12: 姉
B13: =E6 -> 止 | C13: =COUNTIF($E$6:$H$11,B13) -> 1 | D13: =E9 -> ネ | E13: =COUNTIF($E$6:$H$11,D13) -> 1 | F13: =H6 -> 少 | G13: =COUNTIF($E$6:$H$11,F13) -> 1 | H13: =H9 -> 土 | I13: =COUNTIF($E$6:$H$11,H13) -> 1 | J13: ③チェック | O13: 六 | P13: 1.009 | Q13: 1 | U13: 七 | V13: + | W13: 刀 | AA13: ＝ | AB13: 切
B14: =E7 -> 女 | C14: =COUNTIF($E$6:$H$11,B14) -> 1 | D14: =E10 -> イ | E14: =COUNTIF($E$6:$H$11,D14) -> 1 | F14: =H7 -> 市 | G14: =COUNTIF($E$6:$H$11,F14) -> 1 | H14: =H10 -> 本 | I14: =COUNTIF($E$6:$H$11,H14) -> 1 | O14: 七 | P14: 1.01 | Q14: 1 | U14: ネ | V14: + | W14: 土 | AA14: ＝ | AB14: 社
B15: =E8 -> 七 | C15: =COUNTIF($E$6:$H$11,B15) -> 1 | D15: =E11 -> タ | E15: =COUNTIF($E$6:$H$11,D15) -> 2 | F15: =H8 -> 刀 | G15: =COUNTIF($E$6:$H$11,F15) -> 1 | H15: =H11 -> タ | I15: =COUNTIF($E$6:$H$11,H15) -> 2 | O15: 八 | P15: 1.011 | Q15: 1 | S15: ・・ | U15: イ | V15: + | W15: 本 | AA15: ＝ | AB15: 体
C16: =SUM(C13:C15) -> 3 | E16: =SUM(E13:E15) -> 4 | G16: =SUM(G13:G15) -> 3 | I16: =SUM(I13:I15) -> 4 | K16: =C16+E16+G16+I16 -> 14 | O16: 九 | P16: 1.012 | Q16: 1 | U16: タ | V16: + | W16: タ | AA16: ＝ | AB16: 多
O17: 十 | P17: 1.013 | Q17: 1 | U17: 日 | V17: + | W17: 青 | AA17: ＝ | AB17: 晴
O18: 子 | P18: 1.014 | Q18: 1 | U18: 田 | V18: + | W18: 心 | AA18: ＝ | AB18: 思
O19: 空 | P19: 1.015 | Q19: 1 | U19: 八 | V19: + | W19: 刀 | AA19: ＝ | AB19: 分
O20: 男 | P20: 1.016 | Q20: 1 | U20: 糸 | V20: + | W20: 会 | AA20: ＝ | AB20: 絵
O21: 女 | P21: 1.017 | Q21: 1 | U21: 言 | V21: + | W21: 売 | AA21: ＝ | AB21: 読
O22: 手 | P22: 1.018 | Q22: 1 | U22: 木 | V22: + | W22: 木 | AA22: ＝ | AB22: 林
O23: 天 | P23: 1.019 | Q23: 1 | U23: 日 | V23: + | W23: 生 | AA23: ＝ | AB23: 計
O24: 青 | P24: 1.02 | Q24: 1 | U24: 小 | V24: + | W24: ノ | AA24: ＝ | AB24: 少
O25: 見 | P25: 1.021 | Q25: 1
O26: 学 | P26: 1.022 | Q26: 1
O27: 校 | P27: 1.023 | Q27: 1 | R27: 木 | S27: 交
O28: 虫 | P28: 1.024 | Q28: 1
O29: 文 | P29: 1.025 | Q29: 1
O30: 正 | P30: 1.026 | Q30: 1
O31: 字 | P31: 1.027 | Q31: 1
O32: 山 | P32: 1.028 | Q32: 1
O33: 水 | P33: 1.029 | Q33: 1
O34: 雨 | P34: 1.03 | Q34: 1
O35: 上 | P35: 1.031 | Q35: 1
O36: 下 | P36: 1.032 | Q36: 1
O37: 日 | P37: 1.033 | Q37: 1
O38: 火 | P38: 1.034 | Q38: 1
O39: 田 | P39: 1.035 | Q39: 1
O40: 川 | P40: 1.036 | Q40: 1
O41: 竹 | P41: 1.037 | Q41: 1
O42: 月 | P42: 1.038 | Q42: 1
O43: 車 | P43: 1.039 | Q43: 1
O44: 人 | P44: 1.04 | Q44: 1
O45: 気 | P45: 1.041 | Q45: 1
O46: 本 | P46: 1.042 | Q46: 1
O47: 森 | P47: 1.043 | Q47: 1
O48: 出 | P48: 1.044 | Q48: 1
O49: 中 | P49: 1.045 | Q49: 1
O50: 町 | P50: 1.046 | Q50: 1
O51: 入 | P51: 1.047 | Q51: 1
O52: 名 | P52: 1.048 | Q52: 1
O53: 夕 | P53: 1.049 | Q53: 1
O54: 百 | P54: 1.05 | Q54: 1
O55: 円 | P55: 1.051 | Q55: 1
O56: 花 | P56: 1.052 | Q56: 1
O57: 休 | P57: 1.053 | Q57: 1
O58: 金 | P58: 1.054 | Q58: 1
O59: 土 | P59: 1.055 | Q59: 1
O60: 千 | P60: 1.056 | Q60: 1
O61: 糸 | P61: 1.057 | Q61: 1
O62: 目 | P62: 1.058 | Q62: 1
O63: 玉 | P63: 1.059 | Q63: 1
O64: 村 | P64: 1.06 | Q64: 1
O65: 白 | P65: 1.061 | Q65: 1
O66: 音 | P66: 1.062 | Q66: 1
O67: 赤 | P67: 1.063 | Q67: 1
O68: 生 | P68: 1.064 | Q68: 1
O69: 耳 | P69: 1.065 | Q69: 1
O70: 王 | P70: 1.066 | Q70: =IF(P70>$Q$2,"0","1") -> 1
O71: 口 | P71: 1.067 | Q71: 1
O72: 年 | P72: 1.068 | Q72: 1
O73: 立 | P73: 1.069 | Q73: 1
O74: 草 | P74: 1.07 | Q74: 1
O75: 先 | P75: 1.071 | Q75: 1
O76: 犬 | P76: 1.072 | Q76: 1
O77: 早 | P77: 1.073 | Q77: 1
O78: 貝 | P78: 1.074 | Q78: 1
O79: 林 | P79: 1.075 | Q79: 1
O80: 右 | P80: 1.076 | Q80: 1
O81: 足 | P81: 1.077 | Q81: 1
O82: 石 | P82: 1.078 | Q82: 1
O83: 左 | P83: 1.079 | Q83: 1
O84: 力 | P84: 1.08 | Q84: 1
O85: 読 | P85: 2.001 | Q85: 1
O86: 雪 | P86: 2.002 | Q86: 1
O87: 言 | P87: 2.003 | Q87: 1
O88: 行 | P88: 2.004 | Q88: 1
O89: 南 | P89: 2.005 | Q89: 1
O90: 書 | P90: 2.006 | Q90: 1
O91: 絵 | P91: 2.007 | Q91: 1 | R91: 糸 | S91: 会
O92: 図 | P92: 2.008 | Q92: 1
O93: 分 | P93: 2.009 | Q93: 1
O94: 方 | P94: 2.01 | Q94: 1
O95: 春 | P95: 2.011 | Q95: 1
O96: 思 | P96: 2.012 | Q96: 1
O97: 記 | P97: 2.013 | Q97: 1
O98: 曜 | P98: 2.014 | Q98: 1
O99: 肉 | P99: 2.015 | Q99: 1
O100: 話 | P100: 2.016 | Q100: 1
O101: 聞 | P101: 2.017 | Q101: 1
O102: 黄 | P102: 2.018 | Q102: 1
O103: 色 | P103: 2.019 | Q103: 1
O104: 黒 | P104: 2.02 | Q104: 1
O105: 太 | P105: 2.021 | Q105: 1
O106: 毛 | P106: 2.022 | Q106: 1
O107: 高 | P107: 2.023 | Q107: 1
O108: 風 | P108: 2.024 | Q108: 1
O109: 晴 | P109: 2.025 | Q109: 1
O110: 多 | P110: 2.026 | Q110: 1
O111: 形 | P111: 2.027 | Q111: 1
O112: 長 | P112: 2.028 | Q112: 1
O113: 数 | P113: 2.029 | Q113: 1
O114: 体 | P114: 2.03 | Q114: 1
O115: 近 | P115: 2.031 | Q115: 1
O116: 同 | P116: 2.032 | Q116: 1
O117: 今 | P117: 2.033 | Q117: 1
O118: 会 | P118: 2.034 | Q118: 1
O119: 社 | P119: 2.035 | Q119: 1
O120: 刀 | P120: 2.036 | Q120: 1
O121: 切 | P121: 2.037 | Q121: 1
O122: 内 | P122: 2.038 | Q122: 1
O123: 店 | P123: 2.039 | Q123: 1
O124: 姉 | P124: 2.04 | Q124: 1
O125: 妹 | P125: 2.041 | Q125: 1
O126: 線 | P126: 2.042 | Q126: 1
O127: 汽 | P127: 2.043 | Q127: 1
O128: 海 | P128: 2.044 | Q128: 1
O129: 回 | P129: 2.045 | Q129: 1
O130: 歩 | P130: 2.046 | Q130: 1
O131: 魚 | P131: 2.047 | Q131: 0
O132: 広 | P132: 2.048 | Q132: 0
O133: 前 | P133: 2.049 | Q133: 0
O134: 元 | P134: 2.05 | Q134: =IF(P134>$Q$2,"0","1") -> 0
O135: 岩 | P135: 2.051 | Q135: 0
O136: 教 | P136: 2.052 | Q136: 0
O137: 光 | P137: 2.053 | Q137: 0
O138: 知 | P138: 2.054 | Q138: 0
O139: 考 | P139: 2.055 | Q139: 0
O140: 室 | P140: 2.056 | Q140: 0
O141: 組 | P141: 2.057 | Q141: 0
O142: 後 | P142: 2.058 | Q142: 0
O143: 丸 | P143: 2.059 | Q143: 0
O144: 点 | P144: 2.06 | Q144: 0
O145: 買 | P145: 2.061 | Q145: 0
O146: 友 | P146: 2.062 | Q146: 0
O147: 羽 | P147: 2.063 | Q147: 0
O148: 雲 | P148: 2.064 | Q148: 0
O149: 夏 | P149: 2.065 | Q149: 0
O150: 公 | P150: 2.066 | Q150: 0
O151: 園 | P151: 2.067 | Q151: 0
O152: 通 | P152: 2.068 | Q152: 0
O153: 万 | P153: 2.069 | Q153: 0
O154: 頭 | P154: 2.07 | Q154: 0
O155: 鳥 | P155: 2.071 | Q155: 0
O156: 朝 | P156: 2.072 | Q156: 0
O157: 顔 | P157: 2.073 | Q157: 0
O158: 毎 | P158: 2.074 | Q158: 0
O159: 家 | P159: 2.075 | Q159: 0
O160: 当 | P160: 2.076 | Q160: 0
O161: 間 | P161: 2.077 | Q161: 0
O162: 昼 | P162: 2.078 | Q162: 0
O163: 半 | P163: 2.079 | Q163: 0
O164: 電 | P164: 2.08 | Q164: 0
O165: 外 | P165: 2.081 | Q165: 0
O166: 声 | P166: 2.082 | Q166: 0
O167: 楽 | P167: 2.083 | Q167: 0
O168: 親 | P168: 2.084 | Q168: 0
O169: 父 | P169: 2.085 | Q169: 0
O170: 母 | P170: 2.086 | Q170: 0
O171: 兄 | P171: 2.087 | Q171: 0
O172: 弟 | P172: 2.088 | Q172: 0
O173: 午 | P173: 2.089 | Q173: 0
O174: 夜 | P174: 2.09 | Q174: 0
O175: 国 | P175: 2.091 | Q175: 0
O176: 語 | P176: 2.092 | Q176: 0
O177: 算 | P177: 2.093 | Q177: 0
O178: 紙 | P178: 2.094 | Q178: 0
O179: 来 | P179: 2.095 | Q179: 0
O180: 時 | P180: 2.096 | Q180: 0
O181: 帰 | P181: 2.097 | Q181: 0
O182: 何 | P182: 2.098 | Q182: 0
O183: 里 | P183: 2.099 | Q183: 0
O184: 食 | P184: 2.1 | Q184: 0
O185: 明 | P185: 2.101 | Q185: 0
O186: 池 | P186: 2.102 | Q186: 0
O187: 週 | P187: 2.103 | Q187: 0
O188: 番 | P188: 2.104 | Q188: 0
O189: 東 | P189: 2.105 | Q189: 0
O190: 京 | P190: 2.106 | Q190: 0
O191: 古 | P191: 2.107 | Q191: 0
O192: 寺 | P192: 2.108 | Q192: 0
O193: 西 | P193: 2.109 | Q193: 0
O194: 止 | P194: 2.11 | Q194: 0
O195: 道 | P195: 2.111 | Q195: 0
O196: 場 | P196: 2.112 | Q196: 0
O197: 台 | P197: 2.113 | Q197: 0
O198: 新 | P198: 2.114 | Q198: =IF(P198>$Q$2,"0","1") -> 0
O199: 船 | P199: 2.115 | Q199: 0
O200: 米 | P200: 2.116 | Q200: 0
O201: 秋 | P201: 2.117 | Q201: 0
O202: 合 | P202: 2.118 | Q202: 0
O203: 活 | P203: 2.119 | Q203: 0
... 831 more rows

Sheet 合体クイズ
C1: 漢字合体クイズ
G6: =①漢字入力!C2 -> 2年 | M6: 名前 （ ）
AS8: =①漢字入力!$E$6 -> 止 | AY8: ＋ | BE8: =①漢字入力!$H$6 -> 少 | BK8: ＝ | BQ8: =①漢字入力!B6 -> 歩
L12: =編集!$I$5 -> タ | T12: =編集!$I$4 -> 刀
AS14: =①漢字入力!$E$7 -> 女 | AY14: ＋ | BE14: =①漢字入力!$H$7 -> 市 | BK14: ＝ | BQ14: =①漢字入力!B7 -> 姉
B20: =編集!H6 -> イ | AD20: =編集!$H$4 -> 七
AS22: =①漢字入力!$E$8 -> 七 | AY22: ＋ | BE22: =①漢字入力!$H$8 -> 刀 | BK22: ＝ | BQ22: =①漢字入力!B8 -> 切
B27: =編集!$I$2 -> 市 | AD27: =編集!$I$6 -> 本
AS28: =①漢字入力!$E$9 -> ネ | AY28: ＋ | BE28: =①漢字入力!$H$9 -> 土 | BK28: ＝ | BQ28: =①漢字入力!B9 -> 社
B34: =編集!H5 -> タ | AD34: =編集!H2 -> 女 | AS34: =①漢字入力!$E$10 -> イ | AY34: ＋ | BE34: =①漢字入力!$H$10 -> 本 | BK34: ＝ | BQ34: =①漢字入力!B10 -> 体
AS40: =①漢字入力!$E$11 -> タ | AY40: ＋ | BE40: =①漢字入力!$H$11 -> タ | BK40: ＝ | BQ40: =①漢字入力!B11 -> 多
B41: =編集!$I$3 -> 少 | AD41: =編集!$I$1 -> 土
K48: =編集!H3 -> 止 | S48: =編集!H1 -> ネ
D55: ２つ合わせた漢字を書きましょう。

Sheet 迷路１
B2: 漢字おもしろクイズ 名前（ ）
C5: ２つの漢字を合わせると、どんな漢字になるかな？
B9: =編集!$H$1 -> ネ | H9: =編集!$H$2 -> 女 | N9: =編集!$H$3 -> 止 | T9: =編集!$H$4 -> 七 | Z9: =編集!$H$5 -> タ
B34: =編集!$I$1 -> 土 | H34: =編集!$I$5 -> タ | N34: =編集!$I$2 -> 市 | T34: =編集!$I$4 -> 刀 | Z34: =編集!$I$3 -> 少

Sheet 迷路２
F1: 漢字合体迷路 | J1: =①漢字入力!C2 -> 2年 | K1: =U2 -> A① | L1: =V2 -> 名前（ ）
R2: 漢字合わせ | T2: ３年 | U2: A① | V2: 名前（ ）
B3: =#REF! ->  | C3: =#REF! ->  | D3: ① | L3: =編集!$H$1 -> ネ | R3: ⑤
B4: =#REF! ->  | C4: =#REF! ->  | M4: =編集!$H$5 -> タ | N4: =編集!$I$2 -> 市
B5: =#REF! ->  | C5: =#REF! -> 
B6: =#REF! ->  | C6: =#REF! ->  | D6: ②
B7: =#REF! ->  | C7: =#REF! ->  | G7: =編集!$H$2 -> 女
G8: =編集!$I$1 -> 土
K10: =編集!$I$3 -> 少 | L10: =編集!$I$4 -> 刀 | O10: =編集!$I$5 -> タ
I11: =編集!$H$3 -> 止 | J11: =編集!H$4 -> 七
D12: ③ | R12: ④
G14: ⑤ | I14: ④ | K14: ③ | M14: ② | O14: ①

Sheet 迷路3
D2: 漢字おもしろクイズ （ ） | Q2: =①漢字入力!C2 -> 2年 | U2: 名前（ ）
E6: =編集!$H$1 -> ネ | K6: =編集!$H$2 -> 女 | Q6: =編集!$H$3 -> 止 | X6: =編集!$H$4 -> 七 | AF6: =編集!$H$5 -> タ
G36: =編集!$I$5 -> タ | N36: =編集!$I$3 -> 少 | R36: =編集!$I$4 -> 刀 | X36: =編集!$I$1 -> 土 | AF36: =編集!$I$2 -> 市

Sheet 編集
G1: 1 | H1: =IF($G1="","",VLOOKUP($G1,$D$2:$F$7,2,0)) -> ネ | I1: =IF($G1="","",VLOOKUP($G1,$D$2:$F$7,3,0)) -> 土 | M1: ３年
B2: =M2 -> 止 | C2: =RAND() -> 0.8381394311 | D2: =RANK(C2,C$2:C$7) -> 3 | E2: =B2 -> 止 | F2: =B8 -> 少 | G2: 2 | H2: 女 | I2: 市 | M2: =①漢字入力!E6 -> 止 | N2: ＋ | O2: =①漢字入力!H6 -> 少
B3: 女 | C3: 0.8492826853 | D3: 2 | E3: 女 | F3: 市 | G3: 3 | H3: 止 | I3: 少 | M3: =①漢字入力!E7 -> 女 | N3: ＋ | O3: =①漢字入力!H7 -> 市
B4: 七 | C4: 0.4762404344 | D4: 4 | E4: 七 | F4: 刀 | G4: 4 | H4: 七 | I4: 刀 | M4: =①漢字入力!E8 -> 七 | N4: ＋ | O4: =①漢字入力!H8 -> 刀
B5: ネ | C5: 0.9944691187 | D5: 1 | E5: ネ | F5: 土 | G5: 5 | H5: タ | I5: タ | M5: =①漢字入力!E9 -> ネ | N5: ＋ | O5: =①漢字入力!H9 -> 土
B6: イ | C6: 0.2481172346 | D6: 6 | E6: イ | F6: 本 | G6: 6 | H6: イ | I6: 本 | M6: =①漢字入力!E10 -> イ | N6: ＋ | O6: =①漢字入力!H10 -> 本
B7: タ | C7: 0.3120675133 | D7: 5 | E7: タ | F7: タ | M7: =①漢字入力!E11 -> タ | N7: ＋ | O7: =①漢字入力!H11 -> タ
B8: =O2 -> 少 | D8: =D2 -> 3
B9: 市 | D9: 2
B10: 刀 | D10: 4
B11: 土 | D11: 1
B12: 本 | D12: 6
B13: タ | D13: 5

Sheet ②漢字データ
A1: 通し番号 | B1: 整理番号 | C1: 漢字 | D1: 読み | E1: 音訓 | F1: 問題 | G1: 送り仮名 | N1: =①漢字入力!Q2 -> 2.046
A2: =B2*1000 -> 1001 | B2: 1.001 | C2: 木 | D2: 1 | P2: =IF(B2>N$1,0,D2) -> 1 | Q2: =IF(P2=2,B2,0) -> 0
A3: 1002 | B3: 1.002 | C3: 大 | D3: 1 | P3: 1 | Q3: 0 | T3: 2046 | U3: 2.046 | V3: 歩 | W3: 2 | Y3: 止 | Z3: + | AA3: 少 | AE3: ＝ | AF3: 歩 | AI3: 2 | AJ3: 2.046
A4: 1003 | B4: 1.003 | C4: 小 | D4: 1 | P4: 1 | Q4: 0 | T4: 2040 | U4: 2.04 | V4: 姉 | W4: 2 | Y4: 女 | Z4: + | AA4: 市 | AE4: ＝ | AF4: 姉 | AI4: 2 | AJ4: 2.04
A5: 1004 | B5: 1.004 | C5: 一 | D5: 1 | P5: 1 | Q5: 0 | T5: 2037 | U5: 2.037 | V5: 切 | W5: 2 | Y5: 七 | Z5: + | AA5: 刀 | AE5: ＝ | AF5: 切 | AI5: 2 | AJ5: 2.037
A6: 1005 | B6: 1.005 | C6: 二 | D6: 1 | P6: 1 | Q6: 0 | T6: 2035 | U6: 2.035 | V6: 社 | W6: 2 | Y6: ネ | Z6: + | AA6: 土 | AE6: ＝ | AF6: 社 | AI6: 2 | AJ6: 2.035
A7: 1006 | B7: 1.006 | C7: 三 | D7: 1 | P7: 1 | Q7: 0 | T7: 2030 | U7: 2.03 | V7: 体 | W7: 2 | Y7: イ | Z7: + | AA7: 本 | AE7: ＝ | AF7: 体 | AI7: 2 | AJ7: 2.03
A8: 1007 | B8: 1.007 | C8: 四 | D8: 1 | P8: 1 | Q8: 0 | T8: 2026 | U8: 2.026 | V8: 多 | W8: 2 | Y8: タ | Z8: + | AA8: タ | AE8: ＝ | AF8: 多 | AI8: 2 | AJ8: 2.026
A9: 1008 | B9: 1.008 | C9: 五 | D9: 1 | P9: 1 | Q9: 0 | T9: 2025 | U9: 2.025 | V9: 晴 | W9: 2 | Y9: 日 | Z9: + | AA9: 青 | AE9: ＝ | AF9: 晴 | AI9: 2 | AJ9: 2.025
A10: 1009 | B10: 1.009 | C10: 六 | D10: 1 | P10: 1 | Q10: 0 | T10: 2012 | U10: 2.012 | V10: 思 | W10: 2 | Y10: 田 | Z10: + | AA10: 心 | AE10: ＝ | AF10: 思 | AI10: 2 | AJ10: 2.012
A11: 1010 | B11: 1.01 | C11: 七 | D11: 1 | P11: 1 | Q11: 0 | T11: 2009 | U11: 2.009 | V11: 分 | W11: 2 | Y11: 八 | Z11: + | AA11: 刀 | AE11: ＝ | AF11: 分 | AI11: 2 | AJ11: 2.009
A12: 1011 | B12: 1.011 | C12: 八 | D12: 1 | P12: 1 | Q12: 0 | T12: 2007 | U12: 2.007 | V12: 絵 | W12: 2 | Y12: 糸 | Z12: + | AA12: 会 | AE12: ＝ | AF12: 絵 | AI12: 2 | AJ12: 2.007
A13: 1012 | B13: 1.012 | C13: 九 | D13: 1 | P13: 1 | Q13: 0 | T13: 2001 | U13: 2.001 | V13: 読 | W13: 2 | Y13: 言 | Z13: + | AA13: 売 | AE13: ＝ | AF13: 読 | AI13: 2 | AJ13: 2.001
A14: 1013 | B14: 1.013 | C14: 十 | D14: 1 | P14: 1 | Q14: 0 | T14: 1075 | U14: 1.075 | V14: 林 | W14: 2 | Y14: 木 | Z14: + | AA14: 木 | AE14: ＝ | AF14: 林 | AI14: 2 | AJ14: 1.075
A15: 1014 | B15: 1.014 | C15: 子 | D15: 1 | P15: 1 | Q15: 0 | T15: 1074 | U15: 1.074 | V15: 貝 | W15: 2 | Y15: 目 | Z15: + | AA15: 八 | AE15: ＝ | AF15: 貝 | AI15: 2 | AJ15: 1.074
A16: 1015 | B16: 1.015 | C16: 空 | D16: 1 | P16: 1 | Q16: 0 | T16: 1073 | U16: 1.073 | V16: 早 | W16: 2 | Y16: 日 | Z16: + | AA16: 十 | AE16: ＝ | AF16: 早 | AI16: 2 | AJ16: 1.073
A17: 1016 | B17: 1.016 | C17: 男 | D17: 2 | F17: 田 | G17: + | H17: 力 | L17: ＝ | M17: =C17 -> 男 | P17: 2 | Q17: 1.016 | T17: 1062 | U17: 1.062 | V17: 音 | W17: 2 | Y17: 立 | Z17: + | AA17: 日 | AE17: ＝ | AF17: 音 | AI17: 2 | AJ17: 1.062
A18: 1017 | B18: 1.017 | C18: 女 | D18: 1 | P18: 1 | Q18: 0 | T18: 1053 | U18: 1.053 | V18: 休 | W18: 2 | Y18: イ | Z18: + | AA18: 木 | AE18: ＝ | AF18: 休 | AI18: 2 | AJ18: 1.053
A19: 1018 | B19: 1.018 | C19: 手 | D19: 1 | P19: 1 | Q19: 0 | T19: 1050 | U19: 1.05 | V19: 百 | W19: 2 | Y19: 一 | Z19: + | AA19: 白 | AE19: ＝ | AF19: 百 | AI19: 2 | AJ19: 1.05
A20: 1019 | B20: 1.019 | C20: 天 | D20: 2 | F20: 一 | G20: + | H20: 大 | L20: ＝ | M20: =C20 -> 天 | P20: 2 | Q20: 1.019 | T20: 1048 | U20: 1.048 | V20: 名 | W20: 2 | Y20: 夕 | Z20: + | AA20: 口 | AE20: ＝ | AF20: 名 | AI20: 2 | AJ20: 1.048
A21: 1020 | B21: 1.02 | C21: 青 | D21: 1 | P21: 1 | Q21: 0 | T21: 1043 | U21: 1.043 | V21: 森 | W21: 2 | Y21: 木 | Z21: + | AA21: 林 | AE21: ＝ | AF21: 森 | AI21: 2 | AJ21: 1.043
A22: 1021 | B22: 1.021 | C22: 見 | D22: 1 | P22: 1 | Q22: 0 | T22: 1042 | U22: 1.042 | V22: 本 | W22: 2 | Y22: 木 | Z22: + | AA22: 一 | AE22: ＝ | AF22: 本 | AI22: 2 | AJ22: 1.042
A23: 1022 | B23: 1.022 | C23: 学 | D23: 1 | P23: 1 | Q23: 0 | T23: 1019 | U23: 1.019 | V23: 天 | W23: 2 | Y23: 一 | Z23: + | AA23: 大 | AE23: ＝ | AF23: 天 | AI23: 2 | AJ23: 1.019
A24: 1023 | B24: 1.023 | C24: 校 | D24: 1 | P24: 1 | Q24: 0 | T24: 1016 | U24: 1.016 | V24: 男 | W24: 2 | Y24: 田 | Z24: + | AA24: 力 | AE24: ＝ | AF24: 男 | AI24: 2 | AJ24: 1.016
A25: 1024 | B25: 1.024 | C25: 虫 | D25: 1 | P25: 1 | Q25: 0 | T25: 1001 | U25: 1.001 | V25: 木 | W25: 1 | AI25: 1 | AJ25: 0
A26: 1025 | B26: 1.025 | C26: 文 | D26: 1 | P26: 1 | Q26: 0 | T26: 1002 | U26: 1.002 | V26: 大 | W26: 1 | AI26: 1 | AJ26: 0
A27: 1026 | B27: 1.026 | C27: 正 | D27: 1 | P27: 1 | Q27: 0 | T27: 1003 | U27: 1.003 | V27: 小 | W27: 1 | AI27: 1 | AJ27: 0
A28: 1027 | B28: 1.027 | C28: 字 | D28: 1 | P28: 1 | Q28: 0 | T28: 1004 | U28: 1.004 | V28: 一 | W28: 1 | AI28: 1 | AJ28: 0
A29: 1028 | B29: 1.028 | C29: 山 | D29: 1 | P29: 1 | Q29: 0 | T29: 1005 | U29: 1.005 | V29: 二 | W29: 1 | AI29: 1 | AJ29: 0
A30: 1029 | B30: 1.029 | C30: 水 | D30: 1 | P30: 1 | Q30: 0 | T30: 1006 | U30: 1.006 | V30: 三 | W30: 1 | AI30: 1 | AJ30: 0
A31: 1030 | B31: 1.03 | C31: 雨 | D31: 1 | P31: 1 | Q31: 0 | T31: 1007 | U31: 1.007 | V31: 四 | W31: 1 | AI31: 1 | AJ31: 0
A32: 1031 | B32: 1.031 | C32: 上 | D32: 1 | P32: 1 | Q32: 0 | T32: 1008 | U32: 1.008 | V32: 五 | W32: 1 | AI32: 1 | AJ32: 0
A33: 1032 | B33: 1.032 | C33: 下 | D33: 1 | P33: 1 | Q33: 0 | T33: 1009 | U33: 1.009 | V33: 六 | W33: 1 | AI33: 1 | AJ33: 0
A34: 1033 | B34: 1.033 | C34: 日 | D34: 1 | P34: 1 | Q34: 0 | T34: 1010 | U34: 1.01 | V34: 七 | W34: 1 | AI34: 1 | AJ34: 0
A35: 1034 | B35: 1.034 | C35: 火 | D35: 1 | P35: 1 | Q35: 0 | T35: 1011 | U35: 1.011 | V35: 八 | W35: 1 | AI35: 1 | AJ35: 0
A36: 1035 | B36: 1.035 | C36: 田 | D36: 1 | P36: 1 | Q36: 0 | T36: 1012 | U36: 1.012 | V36: 九 | W36: 1 | AI36: 1 | AJ36: 0
A37: 1036 | B37: 1.036 | C37: 川 | D37: 1 | P37: 1 | Q37: 0 | T37: 1013 | U37: 1.013 | V37: 十 | W37: 1 | AI37: 1 | AJ37: 0
A38: 1037 | B38: 1.037 | C38: 竹 | D38: 1 | P38: 1 | Q38: 0 | T38: 1014 | U38: 1.014 | V38: 子 | W38: 1 | AI38: 1 | AJ38: 0
A39: 1038 | B39: 1.038 | C39: 月 | D39: 1 | P39: 1 | Q39: 0 | T39: 1015 | U39: 1.015 | V39: 空 | W39: 1 | AI39: 1 | AJ39: 0
A40: 1039 | B40: 1.039 | C40: 車 | D40: 1 | P40: 1 | Q40: 0 | T40: 1017 | U40: 1.017 | V40: 女 | W40: 1 | AI40: 1 | AJ40: 0
A41: 1040 | B41: 1.04 | C41: 人 | D41: 1 | P41: 1 | Q41: 0 | T41: 1018 | U41: 1.018 | V41: 手 | W41: 1 | AI41: 1 | AJ41: 0
A42: 1041 | B42: 1.041 | C42: 気 | D42: 1 | P42: 1 | Q42: 0 | T42: 1020 | U42: 1.02 | V42: 青 | W42: 1 | AI42: 1 | AJ42: 0
A43: 1042 | B43: 1.042 | C43: 本 | D43: 2 | F43: 木 | G43: + | H43: 一 | L43: ＝ | M43: =C43 -> 本 | P43: 2 | Q43: 1.042 | T43: 1021 | U43: 1.021 | V43: 見 | W43: 1 | AI43: 1 | AJ43: 0
A44: 1043 | B44: 1.043 | C44: 森 | D44: 2 | F44: 木 | G44: + | H44: 林 | L44: ＝ | M44: =C44 -> 森 | P44: 2 | Q44: 1.043 | T44: 1022 | U44: 1.022 | V44: 学 | W44: 1 | AI44: 1 | AJ44: 0
A45: 1044 | B45: 1.044 | C45: 出 | D45: 1 | P45: 1 | Q45: 0 | T45: 1023 | U45: 1.023 | V45: 校 | W45: 1 | AI45: 1 | AJ45: 0
A46: 1045 | B46: 1.045 | C46: 中 | D46: 1 | P46: 1 | Q46: 0 | T46: 1024 | U46: 1.024 | V46: 虫 | W46: 1 | AI46: 1 | AJ46: 0
A47: 1046 | B47: 1.046 | C47: 町 | D47: 1 | P47: 1 | Q47: 0 | T47: 1025 | U47: 1.025 | V47: 文 | W47: 1 | AI47: 1 | AJ47: 0
A48: 1047 | B48: 1.047 | C48: 入 | D48: 1 | P48: 1 | Q48: 0 | T48: 1026 | U48: 1.026 | V48: 正 | W48: 1 | AI48: 1 | AJ48: 0
A49: 1048 | B49: 1.048 | C49: 名 | D49: 2 | F49: 夕 | G49: + | H49: 口 | L49: ＝ | M49: =C49 -> 名 | P49: 2 | Q49: 1.048 | T49: 1027 | U49: 1.027 | V49: 字 | W49: 1 | AI49: 1 | AJ49: 0
A50: 1049 | B50: 1.049 | C50: 夕 | D50: 1 | P50: 1 | Q50: 0 | T50: 1028 | U50: 1.028 | V50: 山 | W50: 1 | AI50: 1 | AJ50: 0
A51: 1050 | B51: 1.05 | C51: 百 | D51: 2 | F51: 一 | G51: + | H51: 白 | L51: ＝ | M51: =C51 -> 百 | P51: 2 | Q51: 1.05 | T51: 1029 | U51: 1.029 | V51: 水 | W51: 1 | AI51: 1 | AJ51: 0
A52: 1051 | B52: 1.051 | C52: 円 | D52: 1 | P52: 1 | Q52: 0 | T52: 1030 | U52: 1.03 | V52: 雨 | W52: 1 | AI52: 1 | AJ52: 0
A53: 1052 | B53: 1.052 | C53: 花 | D53: 1 | P53: 1 | Q53: 0 | T53: 1031 | U53: 1.031 | V53: 上 | W53: 1 | AI53: 1 | AJ53: 0
A54: 1053 | B54: 1.053 | C54: 休 | D54: 2 | F54: イ | G54: + | H54: 木 | L54: ＝ | M54: =C54 -> 休 | P54: 2 | Q54: 1.053 | T54: 1032 | U54: 1.032 | V54: 下 | W54: 1 | AI54: 1 | AJ54: 0
A55: 1054 | B55: 1.054 | C55: 金 | D55: 1 | P55: 1 | Q55: 0 | T55: 1033 | U55: 1.033 | V55: 日 | W55: 1 | AI55: 1 | AJ55: 0
A56: 1055 | B56: 1.055 | C56: 土 | D56: 1 | P56: 1 | Q56: 0 | T56: 1034 | U56: 1.034 | V56: 火 | W56: 1 | AI56: 1 | AJ56: 0
A57: 1056 | B57: 1.056 | C57: 千 | D57: 1 | P57: 1 | Q57: 0 | T57: 1035 | U57: 1.035 | V57: 田 | W57: 1 | AI57: 1 | AJ57: 0
A58: 1057 | B58: 1.057 | C58: 糸 | D58: 1 | P58: 1 | Q58: 0 | T58: 1036 | U58: 1.036 | V58: 川 | W58: 1 | AI58: 1 | AJ58: 0
A59: 1058 | B59: 1.058 | C59: 目 | D59: 1 | P59: 1 | Q59: 0 | T59: 1037 | U59: 1.037 | V59: 竹 | W59: 1 | AI59: 1 | AJ59: 0
A60: 1059 | B60: 1.059 | C60: 玉 | D60: 1 | P60: 1 | Q60: 0 | T60: 1038 | U60: 1.038 | V60: 月 | W60: 1 | AI60: 1 | AJ60: 0
A61: 1060 | B61: 1.06 | C61: 村 | D61: 1 | P61: 1 | Q61: 0 | T61: 1039 | U61: 1.039 | V61: 車 | W61: 1 | AI61: 1 | AJ61: 0
A62: 1061 | B62: 1.061 | C62: 白 | D62: 1 | P62: 1 | Q62: 0 | T62: 1040 | U62: 1.04 | V62: 人 | W62: 1 | AI62: 1 | AJ62: 0
A63: 1062 | B63: 1.062 | C63: 音 | D63: 2 | F63: 立 | G63: + | H63: 日 | L63: ＝ | M63: =C63 -> 音 | P63: 2 | Q63: 1.062 | T63: 1041 | U63: 1.041 | V63: 気 | W63: 1 | AI63: 1 | AJ63: 0
A64: 1063 | B64: 1.063 | C64: 赤 | D64: 1 | P64: 1 | Q64: 0 | T64: 1044 | U64: 1.044 | V64: 出 | W64: 1 | AI64: 1 | AJ64: 0
A65: 1064 | B65: 1.064 | C65: 生 | D65: 1 | P65: 1 | Q65: 0 | T65: 1045 | U65: 1.045 | V65: 中 | W65: 1 | AI65: 1 | AJ65: 0
A66: =B66*1000 -> 1065 | B66: 1.065 | C66: 耳 | D66: 1 | P66: =IF(B66>N$1,0,D66) -> 1 | Q66: =IF(P66=2,B66,0) -> 0 | T66: 1046 | U66: 1.046 | V66: 町 | W66: 1 | AI66: 1 | AJ66: 0
A67: 1066 | B67: 1.066 | C67: 王 | D67: 1 | P67: 1 | Q67: 0 | T67: 1047 | U67: 1.047 | V67: 入 | W67: 1 | AI67: 1 | AJ67: 0
A68: 1067 | B68: 1.067 | C68: 口 | D68: 1 | P68: 1 | Q68: 0 | T68: 1049 | U68: 1.049 | V68: 夕 | W68: 1 | AI68: 1 | AJ68: 0
A69: 1068 | B69: 1.068 | C69: 年 | D69: 1 | P69: 1 | Q69: 0 | T69: 1051 | U69: 1.051 | V69: 円 | W69: 1 | AI69: 1 | AJ69: 0
A70: 1069 | B70: 1.069 | C70: 立 | D70: 1 | P70: 1 | Q70: 0 | T70: 1052 | U70: 1.052 | V70: 花 | W70: 1 | AI70: 1 | AJ70: 0
A71: 1070 | B71: 1.07 | C71: 草 | D71: 1 | P71: 1 | Q71: 0 | T71: 1054 | U71: 1.054 | V71: 金 | W71: 1 | AI71: 1 | AJ71: 0
A72: 1071 | B72: 1.071 | C72: 先 | D72: 1 | P72: 1 | Q72: 0 | T72: 1055 | U72: 1.055 | V72: 土 | W72: 1 | AI72: 1 | AJ72: 0
A73: 1072 | B73: 1.072 | C73: 犬 | D73: 1 | P73: 1 | Q73: 0 | T73: 1056 | U73: 1.056 | V73: 千 | W73: 1 | AI73: 1 | AJ73: 0
A74: 1073 | B74: 1.073 | C74: 早 | D74: 2 | F74: 日 | G74: + | H74: 十 | L74: ＝ | M74: =C74 -> 早 | P74: 2 | Q74: 1.073 | T74: 1057 | U74: 1.057 | V74: 糸 | W74: 1 | AI74: 1 | AJ74: 0
A75: 1074 | B75: 1.074 | C75: 貝 | D75: 2 | F75: 目 | G75: + | H75: 八 | L75: ＝ | M75: =C75 -> 貝 | P75: 2 | Q75: 1.074 | T75: 1058 | U75: 1.058 | V75: 目 | W75: 1 | AI75: 1 | AJ75: 0
A76: 1075 | B76: 1.075 | C76: 林 | D76: 2 | F76: 木 | G76: + | H76: 木 | L76: ＝ | M76: =C76 -> 林 | P76: 2 | Q76: 1.075 | T76: 1059 | U76: 1.059 | V76: 玉 | W76: 1 | AI76: 1 | AJ76: 0
A77: 1076 | B77: 1.076 | C77: 右 | D77: 1 | P77: 1 | Q77: 0 | T77: 1060 | U77: 1.06 | V77: 村 | W77: 1 | AI77: 1 | AJ77: 0
A78: 1077 | B78: 1.077 | C78: 足 | D78: 1 | P78: 1 | Q78: 0 | T78: 1061 | U78: 1.061 | V78: 白 | W78: 1 | AI78: 1 | AJ78: 0
A79: 1078 | B79: 1.078 | C79: 石 | D79: 1 | P79: 1 | Q79: 0 | T79: 1063 | U79: 1.063 | V79: 赤 | W79: 1 | AI79: 1 | AJ79: 0
A80: 1079 | B80: 1.079 | C80: 左 | D80: 1 | P80: 1 | Q80: 0 | T80: 1064 | U80: 1.064 | V80: 生 | W80: 1 | AI80: 1 | AJ80: 0
A81: 1080 | B81: 1.08 | C81: 力 | D81: 1 | P81: 1 | Q81: 0 | T81: 1065 | U81: 1.065 | V81: 耳 | W81: 1 | AI81: 1 | AJ81: 0
A82: 2001 | B82: 2.001 | C82: 読 | D82: 2 | F82: 言 | G82: + | H82: 売 | L82: ＝ | M82: =C82 -> 読 | P82: 2 | Q82: 2.001 | T82: 1066 | U82: 1.066 | V82: 王 | W82: 1 | AI82: 1 | AJ82: 0
A83: 2002 | B83: 2.002 | C83: 雪 | D83: 1 | P83: 1 | Q83: 0 | T83: 1067 | U83: 1.067 | V83: 口 | W83: 1 | AI83: 1 | AJ83: 0
A84: 2003 | B84: 2.003 | C84: 言 | D84: 1 | P84: 1 | Q84: 0 | T84: 1068 | U84: 1.068 | V84: 年 | W84: 1 | AI84: 1 | AJ84: 0
A85: 2004 | B85: 2.004 | C85: 行 | D85: 1 | P85: 1 | Q85: 0 | T85: 1069 | U85: 1.069 | V85: 立 | W85: 1 | AI85: 1 | AJ85: 0
A86: 2005 | B86: 2.005 | C86: 南 | D86: 1 | O86: 水 | P86: 1 | Q86: 0 | T86: 1070 | U86: 1.07 | V86: 草 | W86: 1 | AI86: 1 | AJ86: 0
A87: 2006 | B87: 2.006 | C87: 書 | D87: 1 | P87: 1 | Q87: 0 | T87: 1071 | U87: 1.071 | V87: 先 | W87: 1 | AI87: 1 | AJ87: 0
A88: 2007 | B88: 2.007 | C88: 絵 | D88: 2 | F88: 糸 | G88: + | H88: 会 | L88: ＝ | M88: =C88 -> 絵 | P88: 2 | Q88: 2.007 | T88: 1072 | U88: 1.072 | V88: 犬 | W88: 1 | AI88: 1 | AJ88: 0
A89: 2008 | B89: 2.008 | C89: 図 | D89: 1 | P89: 1 | Q89: 0 | T89: 1076 | U89: 1.076 | V89: 右 | W89: 1 | AI89: 1 | AJ89: 0
A90: 2009 | B90: 2.009 | C90: 分 | D90: 2 | F90: 八 | G90: + | H90: 刀 | L90: ＝ | M90: =C90 -> 分 | P90: 2 | Q90: 2.009 | T90: 1077 | U90: 1.077 | V90: 足 | W90: 1 | AI90: 1 | AJ90: 0
A91: 2010 | B91: 2.01 | C91: 方 | D91: 1 | P91: 1 | Q91: 0 | T91: 1078 | U91: 1.078 | V91: 石 | W91: 1 | AI91: 1 | AJ91: 0
A92: 2011 | B92: 2.011 | C92: 春 | D92: 1 | P92: 1 | Q92: 0 | T92: 1079 | U92: 1.079 | V92: 左 | W92: 1 | AI92: 1 | AJ92: 0
A93: 2012 | B93: 2.012 | C93: 思 | D93: 2 | F93: 田 | G93: + | H93: 心 | L93: ＝ | M93: =C93 -> 思 | P93: 2 | Q93: 2.012 | T93: 1080 | U93: 1.08 | V93: 力 | W93: 1 | AI93: 1 | AJ93: 0
A94: 2013 | B94: 2.013 | C94: 記 | D94: 1 | P94: 1 | Q94: 0 | T94: 2002 | U94: 2.002 | V94: 雪 | W94: 1 | AI94: 1 | AJ94: 0
A95: 2014 | B95: 2.014 | C95: 曜 | D95: 1 | P95: 1 | Q95: 0 | T95: 2003 | U95: 2.003 | V95: 言 | W95: 1 | AI95: 1 | AJ95: 0
A96: 2015 | B96: 2.015 | C96: 肉 | D96: 1 | P96: 1 | Q96: 0 | T96: 2004 | U96: 2.004 | V96: 行 | W96: 1 | AI96: 1 | AJ96: 0
A97: 2016 | B97: 2.016 | C97: 話 | D97: 4 | F97: 言 | G97: + | H97: 舌 | L97: ＝ | M97: =C97 -> 話 | P97: 4 | Q97: 0 | T97: 2005 | U97: 2.005 | V97: 南 | W97: 1 | AH97: 水 | AI97: 1 | AJ97: 0
A98: 2017 | B98: 2.017 | C98: 聞 | D98: 1 | P98: 1 | Q98: 0 | T98: 2006 | U98: 2.006 | V98: 書 | W98: 1 | AI98: 1 | AJ98: 0
A99: 2018 | B99: 2.018 | C99: 黄 | D99: 1 | P99: 1 | Q99: 0 | T99: 2008 | U99: 2.008 | V99: 図 | W99: 1 | AI99: 1 | AJ99: 0
A100: 2019 | B100: 2.019 | C100: 色 | D100: 1 | P100: 1 | Q100: 0 | T100: 2010 | U100: 2.01 | V100: 方 | W100: 1 | AI100: 1 | AJ100: 0
A101: 2020 | B101: 2.02 | C101: 黒 | D101: 1 | P101: 1 | Q101: 0 | T101: 2011 | U101: 2.011 | V101: 春 | W101: 1 | AI101: 1 | AJ101: 0
A102: 2021 | B102: 2.021 | C102: 太 | D102: 1 | P102: 1 | Q102: 0 | T102: 2013 | U102: 2.013 | V102: 記 | W102: 1 | AI102: 1 | AJ102: 0
A103: 2022 | B103: 2.022 | C103: 毛 | D103: 1 | P103: 1 | Q103: 0 | T103: 2014 | U103: 2.014 | V103: 曜 | W103: 1 | AI103: 1 | AJ103: 0
A104: 2023 | B104: 2.023 | C104: 高 | D104: 1 | P104: 1 | Q104: 0 | T104: 2015 | U104: 2.015 | V104: 肉 | W104: 1 | AI104: 1 | AJ104: 0
A105: 2024 | B105: 2.024 | C105: 風 | D105: 1 | P105: 1 | Q105: 0 | T105: 2016 | U105: 2.016 | V105: 話 | W105: 4 | Y105: 言 | Z105: + | AA105: 舌 | AE105: ＝ | AF105: 話 | AI105: 4 | AJ105: 0
A106: 2025 | B106: 2.025 | C106: 晴 | D106: 2 | F106: 日 | G106: + | H106: 青 | L106: ＝ | M106: =C106 -> 晴 | P106: 2 | Q106: 2.025 | T106: 2017 | U106: 2.017 | V106: 聞 | W106: 1 | AI106: 1 | AJ106: 0
A107: 2026 | B107: 2.026 | C107: 多 | D107: 2 | F107: タ | G107: + | H107: タ | L107: ＝ | M107: =C107 -> 多 | P107: 2 | Q107: 2.026 | T107: 2018 | U107: 2.018 | V107: 黄 | W107: 1 | AI107: 1 | AJ107: 0
A108: 2027 | B108: 2.027 | C108: 形 | D108: 1 | P108: 1 | Q108: 0 | T108: 2019 | U108: 2.019 | V108: 色 | W108: 1 | AI108: 1 | AJ108: 0
A109: 2028 | B109: 2.028 | C109: 長 | D109: 1 | P109: 1 | Q109: 0 | T109: 2020 | U109: 2.02 | V109: 黒 | W109: 1 | AI109: 1 | AJ109: 0
A110: 2029 | B110: 2.029 | C110: 数 | D110: 1 | P110: 1 | Q110: 0 | T110: 2021 | U110: 2.021 | V110: 太 | W110: 1 | AI110: 1 | AJ110: 0
A111: 2030 | B111: 2.03 | C111: 体 | D111: 2 | F111: イ | G111: + | H111: 本 | L111: ＝ | M111: =C111 -> 体 | P111: 2 | Q111: 2.03 | T111: 2022 | U111: 2.022 | V111: 毛 | W111: 1 | AI111: 1 | AJ111: 0
A112: 2031 | B112: 2.031 | C112: 近 | D112: 1 | P112: 1 | Q112: 0 | T112: 2023 | U112: 2.023 | V112: 高 | W112: 1 | AI112: 1 | AJ112: 0
A113: 2032 | B113: 2.032 | C113: 同 | D113: 1 | P113: 1 | Q113: 0 | T113: 2024 | U113: 2.024 | V113: 風 | W113: 1 | AI113: 1 | AJ113: 0
A114: 2033 | B114: 2.033 | C114: 今 | D114: 1 | P114: 1 | Q114: 0 | T114: 2027 | U114: 2.027 | V114: 形 | W114: 1 | AI114: 1 | AJ114: 0
A115: 2034 | B115: 2.034 | C115: 会 | D115: 1 | P115: 1 | Q115: 0 | T115: 2028 | U115: 2.028 | V115: 長 | W115: 1 | AI115: 1 | AJ115: 0
A116: 2035 | B116: 2.035 | C116: 社 | D116: 2 | F116: ネ | G116: + | H116: 土 | L116: ＝ | M116: =C116 -> 社 | P116: 2 | Q116: 2.035 | T116: 2029 | U116: 2.029 | V116: 数 | W116: 1 | AI116: 1 | AJ116: 0
A117: 2036 | B117: 2.036 | C117: 刀 | D117: 1 | P117: 1 | Q117: 0 | T117: 2031 | U117: 2.031 | V117: 近 | W117: 1 | AI117: 1 | AJ117: 0
A118: 2037 | B118: 2.037 | C118: 切 | D118: 2 | F118: 七 | G118: + | H118: 刀 | L118: ＝ | M118: =C118 -> 切 | P118: 2 | Q118: 2.037 | T118: 2032 | U118: 2.032 | V118: 同 | W118: 1 | AI118: 1 | AJ118: 0
A119: 2038 | B119: 2.038 | C119: 内 | D119: 1 | P119: 1 | Q119: 0 | T119: 2033 | U119: 2.033 | V119: 今 | W119: 1 | AI119: 1 | AJ119: 0
A120: 2039 | B120: 2.039 | C120: 店 | D120: 1 | P120: 1 | Q120: 0 | T120: 2034 | U120: 2.034 | V120: 会 | W120: 1 | AI120: 1 | AJ120: 0
A121: 2040 | B121: 2.04 | C121: 姉 | D121: 2 | F121: 女 | G121: + | H121: 市 | L121: ＝ | M121: =C121 -> 姉 | P121: 2 | Q121: 2.04 | T121: 2036 | U121: 2.036 | V121: 刀 | W121: 1 | AI121: 1 | AJ121: 0
A122: 2041 | B122: 2.041 | C122: 妹 | D122: 4 | F122: 女 | G122: + | H122: 未 | L122: ＝ | M122: =C122 -> 妹 | P122: 4 | Q122: 0 | T122: 2038 | U122: 2.038 | V122: 内 | W122: 1 | AI122: 1 | AJ122: 0
A123: 2042 | B123: 2.042 | C123: 線 | D123: 3 | F123: 糸 | G123: + | H123: 白 | I123: ＋ | J123: 水 | L123: ＝ | M123: =C123 -> 線 | P123: 3 | Q123: 0 | T123: 2039 | U123: 2.039 | V123: 店 | W123: 1 | AI123: 1 | AJ123: 0
A124: 2043 | B124: 2.043 | C124: 汽 | D124: 1 | P124: 1 | Q124: 0 | T124: 2041 | U124: 2.041 | V124: 妹 | W124: 4 | Y124: 女 | Z124: + | AA124: 未 | AE124: ＝ | AF124: 妹 | AI124: 4 | AJ124: 0
A125: 2044 | B125: 2.044 | C125: 海 | D125: 1 | P125: 1 | Q125: 0 | T125: 2042 | U125: 2.042 | V125: 線 | W125: 3 | Y125: 糸 | Z125: + | AA125: 白 | AB125: ＋ | AC125: 水 | AE125: ＝ | AF125: 線 | AI125: 3 | AJ125: 0
A126: 2045 | B126: 2.045 | C126: 回 | D126: 1 | P126: 1 | Q126: 0 | T126: 2043 | U126: 2.043 | V126: 汽 | W126: 1 | AI126: 1 | AJ126: 0
A127: 2046 | B127: 2.046 | C127: 歩 | D127: 2 | F127: 止 | G127: + | H127: 少 | L127: ＝ | M127: =C127 -> 歩 | P127: 2 | Q127: 2.046 | T127: 2044 | U127: 2.044 | V127: 海 | W127: 1 | AI127: 1 | AJ127: 0
A128: 2047 | B128: 2.047 | C128: 魚 | D128: 1 | P128: 0 | Q128: 0 | T128: 2045 | U128: 2.045 | V128: 回 | W128: 1 | AI128: 1 | AJ128: 0
A129: 2048 | B129: 2.048 | C129: 広 | D129: 1 | P129: 0 | Q129: 0 | T129: 2047 | U129: 2.047 | V129: 魚 | W129: 1 | AI129: 0 | AJ129: 0
A130: =B130*1000 -> 2049 | B130: 2.049 | C130: 前 | D130: 1 | P130: =IF(B130>N$1,0,D130) -> 0 | Q130: =IF(P130=2,B130,0) -> 0 | T130: 2048 | U130: 2.048 | V130: 広 | W130: 1 | AI130: 0 | AJ130: 0
A131: 2050 | B131: 2.05 | C131: 元 | D131: 1 | P131: 0 | Q131: 0 | T131: 2049 | U131: 2.049 | V131: 前 | W131: 1 | AI131: 0 | AJ131: 0
A132: 2051 | B132: 2.051 | C132: 岩 | D132: 2 | F132: 山 | G132: + | H132: 石 | L132: ＝ | M132: =C132 -> 岩 | P132: 0 | Q132: 0 | T132: 2050 | U132: 2.05 | V132: 元 | W132: 1 | AI132: 0 | AJ132: 0
A133: 2052 | B133: 2.052 | C133: 教 | D133: 1 | P133: 0 | Q133: 0 | T133: 2051 | U133: 2.051 | V133: 岩 | W133: 2 | Y133: 山 | Z133: + | AA133: 石 | AE133: ＝ | AF133: 岩 | AI133: 0 | AJ133: 0
A134: 2053 | B134: 2.053 | C134: 光 | D134: 1 | P134: 0 | Q134: 0 | T134: 2052 | U134: 2.052 | V134: 教 | W134: 1 | AI134: 0 | AJ134: 0
A135: 2054 | B135: 2.054 | C135: 知 | D135: 2 | F135: 矢 | G135: + | H135: 口 | L135: ＝ | M135: =C135 -> 知 | P135: 0 | Q135: 0 | T135: 2053 | U135: 2.053 | V135: 光 | W135: 1 | AI135: 0 | AJ135: 0
A136: 2055 | B136: 2.055 | C136: 考 | D136: 1 | P136: 0 | Q136: 0 | T136: 2054 | U136: 2.054 | V136: 知 | W136: 2 | Y136: 矢 | Z136: + | AA136: 口 | AE136: ＝ | AF136: 知 | AI136: 0 | AJ136: 0
A137: 2056 | B137: 2.056 | C137: 室 | D137: 1 | P137: 0 | Q137: 0 | T137: 2055 | U137: 2.055 | V137: 考 | W137: 1 | AI137: 0 | AJ137: 0
A138: 2057 | B138: 2.057 | C138: 組 | D138: 1 | P138: 0 | Q138: 0 | T138: 2056 | U138: 2.056 | V138: 室 | W138: 1 | AI138: 0 | AJ138: 0
A139: 2058 | B139: 2.058 | C139: 後 | D139: 1 | P139: 0 | Q139: 0 | T139: 2057 | U139: 2.057 | V139: 組 | W139: 1 | AI139: 0 | AJ139: 0
A140: 2059 | B140: 2.059 | C140: 丸 | D140: 1 | P140: 0 | Q140: 0 | T140: 2058 | U140: 2.058 | V140: 後 | W140: 1 | AI140: 0 | AJ140: 0
A141: 2060 | B141: 2.06 | C141: 点 | D141: 1 | P141: 0 | Q141: 0 | T141: 2059 | U141: 2.059 | V141: 丸 | W141: 1 | AI141: 0 | AJ141: 0
A142: 2061 | B142: 2.061 | C142: 買 | D142: 1 | P142: 0 | Q142: 0 | T142: 2060 | U142: 2.06 | V142: 点 | W142: 1 | AI142: 0 | AJ142: 0
A143: 2062 | B143: 2.062 | C143: 友 | D143: 1 | O143: 見 | P143: 0 | Q143: 0 | T143: 2061 | U143: 2.061 | V143: 買 | W143: 1 | AI143: 0 | AJ143: 0
A144: 2063 | B144: 2.063 | C144: 羽 | D144: 1 | P144: 0 | Q144: 0 | T144: 2062 | U144: 2.062 | V144: 友 | W144: 1 | AH144: 見 | AI144: 0 | AJ144: 0
A145: 2064 | B145: 2.064 | C145: 雲 | D145: 1 | P145: 0 | Q145: 0 | T145: 2063 | U145: 2.063 | V145: 羽 | W145: 1 | AI145: 0 | AJ145: 0
A146: 2065 | B146: 2.065 | C146: 夏 | D146: 1 | P146: 0 | Q146: 0 | T146: 2064 | U146: 2.064 | V146: 雲 | W146: 1 | AI146: 0 | AJ146: 0
A147: 2066 | B147: 2.066 | C147: 公 | D147: 2 | F147: 八 | G147: + | H147: ム | L147: ＝ | M147: =C147 -> 公 | P147: 0 | Q147: 0 | T147: 2065 | U147: 2.065 | V147: 夏 | W147: 1 | AI147: 0 | AJ147: 0
A148: 2067 | B148: 2.067 | C148: 園 | D148: 1 | P148: 0 | Q148: 0 | T148: 2066 | U148: 2.066 | V148: 公 | W148: 2 | Y148: 八 | Z148: + | AA148: ム | AE148: ＝ | AF148: 公 | AI148: 0 | AJ148: 0
A149: 2068 | B149: 2.068 | C149: 通 | D149: 1 | P149: 0 | Q149: 0 | T149: 2067 | U149: 2.067 | V149: 園 | W149: 1 | AI149: 0 | AJ149: 0
A150: 2069 | B150: 2.069 | C150: 万 | D150: 1 | P150: 0 | Q150: 0 | T150: 2068 | U150: 2.068 | V150: 通 | W150: 1 | AI150: 0 | AJ150: 0
A151: 2070 | B151: 2.07 | C151: 頭 | D151: 1 | P151: 0 | Q151: 0 | T151: 2069 | U151: 2.069 | V151: 万 | W151: 1 | AI151: 0 | AJ151: 0
A152: 2071 | B152: 2.071 | C152: 鳥 | D152: 1 | O152: 口 | P152: 0 | Q152: 0 | T152: 2070 | U152: 2.07 | V152: 頭 | W152: 1 | AI152: 0 | AJ152: 0
A153: 2072 | B153: 2.072 | C153: 朝 | D153: 3 | F153: 十 | G153: + | H153: 早 | I153: + | J153: 月 | L153: ＝ | M153: =C153 -> 朝 | P153: 0 | Q153: 0 | T153: 2071 | U153: 2.071 | V153: 鳥 | W153: 1 | AH153: 口 | AI153: 0 | AJ153: 0
A154: 2073 | B154: 2.073 | C154: 顔 | D154: 1 | P154: 0 | Q154: 0 | T154: 2072 | U154: 2.072 | V154: 朝 | W154: 3 | Y154: 十 | Z154: + | AA154: 早 | AB154: + | AC154: 月 | AE154: ＝ | AF154: 朝 | AI154: 0 | AJ154: 0
A155: 2074 | B155: 2.074 | C155: 毎 | D155: 1 | P155: 0 | Q155: 0 | T155: 2073 | U155: 2.073 | V155: 顔 | W155: 1 | AI155: 0 | AJ155: 0
A156: 2075 | B156: 2.075 | C156: 家 | D156: 1 | P156: 0 | Q156: 0 | T156: 2074 | U156: 2.074 | V156: 毎 | W156: 1 | AI156: 0 | AJ156: 0
A157: 2076 | B157: 2.076 | C157: 当 | D157: 1 | P157: 0 | Q157: 0 | T157: 2075 | U157: 2.075 | V157: 家 | W157: 1 | AI157: 0 | AJ157: 0
A158: 2077 | B158: 2.077 | C158: 間 | D158: 2 | F158: 門 | G158: + | H158: 日 | L158: ＝ | M158: =C158 -> 間 | P158: 0 | Q158: 0 | T158: 2076 | U158: 2.076 | V158: 当 | W158: 1 | AI158: 0 | AJ158: 0
A159: 2078 | B159: 2.078 | C159: 昼 | D159: 1 | P159: 0 | Q159: 0 | T159: 2077 | U159: 2.077 | V159: 間 | W159: 2 | Y159: 門 | Z159: + | AA159: 日 | AE159: ＝ | AF159: 間 | AI159: 0 | AJ159: 0
A160: 2079 | B160: 2.079 | C160: 半 | D160: 1 | P160: 0 | Q160: 0 | T160: 2078 | U160: 2.078 | V160: 昼 | W160: 1 | AI160: 0 | AJ160: 0
A161: 2080 | B161: 2.08 | C161: 電 | D161: 1 | P161: 0 | Q161: 0 | T161: 2079 | U161: 2.079 | V161: 半 | W161: 1 | AI161: 0 | AJ161: 0
A162: 2081 | B162: 2.081 | C162: 外 | D162: 2 | F162: タ | G162: + | H162: ト | L162: ＝ | M162: =C162 -> 外 | P162: 0 | Q162: 0 | T162: 2080 | U162: 2.08 | V162: 電 | W162: 1 | AI162: 0 | AJ162: 0
A163: 2082 | B163: 2.082 | C163: 声 | D163: 1 | P163: 0 | Q163: 0 | T163: 2081 | U163: 2.081 | V163: 外 | W163: 2 | Y163: タ | Z163: + | AA163: ト | AE163: ＝ | AF163: 外 | AI163: 0 | AJ163: 0
A164: 2083 | B164: 2.083 | C164: 楽 | D164: 1 | P164: 0 | Q164: 0 | T164: 2082 | U164: 2.082 | V164: 声 | W164: 1 | AI164: 0 | AJ164: 0
A165: 2084 | B165: 2.084 | C165: 親 | D165: 3 | F165: 立 | G165: + | H165: 木 | I165: + | J165: 見 | M165: =C165 -> 親 | P165: 0 | Q165: 0 | T165: 2083 | U165: 2.083 | V165: 楽 | W165: 1 | AI165: 0 | AJ165: 0
A166: 2085 | B166: 2.085 | C166: 父 | D166: 1 | P166: 0 | Q166: 0 | T166: 2084 | U166: 2.084 | V166: 親 | W166: 3 | Y166: 立 | Z166: + | AA166: 木 | AB166: + | AC166: 見 | AF166: 親 | AI166: 0 | AJ166: 0
A167: 2086 | B167: 2.086 | C167: 母 | D167: 1 | P167: 0 | Q167: 0 | T167: 2085 | U167: 2.085 | V167: 父 | W167: 1 | AI167: 0 | AJ167: 0
A168: 2087 | B168: 2.087 | C168: 兄 | D168: 1 | P168: 0 | Q168: 0 | T168: 2086 | U168: 2.086 | V168: 母 | W168: 1 | AI168: 0 | AJ168: 0
A169: 2088 | B169: 2.088 | C169: 弟 | D169: 1 | P169: 0 | Q169: 0 | T169: 2087 | U169: 2.087 | V169: 兄 | W169: 1 | AI169: 0 | AJ169: 0
A170: 2089 | B170: 2.089 | C170: 午 | D170: 1 | P170: 0 | Q170: 0 | T170: 2088 | U170: 2.088 | V170: 弟 | W170: 1 | AI170: 0 | AJ170: 0
A171: 2090 | B171: 2.09 | C171: 夜 | D171: 1 | P171: 0 | Q171: 0 | T171: 2089 | U171: 2.089 | V171: 午 | W171: 1 | AI171: 0 | AJ171: 0
A172: 2091 | B172: 2.091 | C172: 国 | D172: 1 | P172: 0 | Q172: 0 | T172: 2090 | U172: 2.09 | V172: 夜 | W172: 1 | AI172: 0 | AJ172: 0
A173: 2092 | B173: 2.092 | C173: 語 | D173: 3 | F173: 言 | G173: + | H173: 五 | I173: + | J173: 口 | M173: =C173 -> 語 | P173: 0 | Q173: 0 | T173: 2091 | U173: 2.091 | V173: 国 | W173: 1 | AI173: 0 | AJ173: 0
A174: 2093 | B174: 2.093 | C174: 算 | D174: 1 | P174: 0 | Q174: 0 | T174: 2092 | U174: 2.092 | V174: 語 | W174: 3 | Y174: 言 | Z174: + | AA174: 五 | AB174: + | AC174: 口 | AF174: 語 | AI174: 0 | AJ174: 0
A175: 2094 | B175: 2.094 | C175: 紙 | D175: 4 | F175: 糸 | G175: + | H175: 氏 | L175: ＝ | M175: =C175 -> 紙 | P175: 0 | Q175: 0 | T175: 2093 | U175: 2.093 | V175: 算 | W175: 1 | AI175: 0 | AJ175: 0
A176: 2095 | B176: 2.095 | C176: 来 | D176: 1 | P176: 0 | Q176: 0 | T176: 2094 | U176: 2.094 | V176: 紙 | W176: 4 | Y176: 糸 | Z176: + | AA176: 氏 | AE176: ＝ | AF176: 紙 | AI176: 0 | AJ176: 0
A177: 2096 | B177: 2.096 | C177: 時 | D177: 2 | F177: 日 | G177: + | H177: 寺 | L177: ＝ | M177: =C177 -> 時 | P177: 0 | Q177: 0 | T177: 2095 | U177: 2.095 | V177: 来 | W177: 1 | AI177: 0 | AJ177: 0
A178: 2097 | B178: 2.097 | C178: 帰 | D178: 1 | P178: 0 | Q178: 0 | T178: 2096 | U178: 2.096 | V178: 時 | W178: 2 | Y178: 日 | Z178: + | AA178: 寺 | AE178: ＝ | AF178: 時 | AI178: 0 | AJ178: 0
A179: 2098 | B179: 2.098 | C179: 何 | D179: 1 | P179: 0 | Q179: 0 | T179: 2097 | U179: 2.097 | V179: 帰 | W179: 1 | AI179: 0 | AJ179: 0
A180: 2099 | B180: 2.099 | C180: 里 | D180: 1 | P180: 0 | Q180: 0 | T180: 2098 | U180: 2.098 | V180: 何 | W180: 1 | AI180: 0 | AJ180: 0
A181: 2100 | B181: 2.1 | C181: 食 | D181: 1 | P181: 0 | Q181: 0 | T181: 2099 | U181: 2.099 | V181: 里 | W181: 1 | AI181: 0 | AJ181: 0
A182: 2101 | B182: 2.101 | C182: 明 | D182: 2 | F182: 日 | G182: + | H182: 月 | L182: ＝ | M182: =C182 -> 明 | P182: 0 | Q182: 0 | T182: 2100 | U182: 2.1 | V182: 食 | W182: 1 | AI182: 0 | AJ182: 0
A183: 2102 | B183: 2.102 | C183: 池 | D183: 1 | P183: 0 | Q183: 0 | T183: 2101 | U183: 2.101 | V183: 明 | W183: 2 | Y183: 日 | Z183: + | AA183: 月 | AE183: ＝ | AF183: 明 | AI183: 0 | AJ183: 0
A184: 2103 | B184: 2.103 | C184: 週 | D184: 1 | P184: 0 | Q184: 0 | T184: 2102 | U184: 2.102 | V184: 池 | W184: 1 | AI184: 0 | AJ184: 0
A185: 2104 | B185: 2.104 | C185: 番 | D185: 3 | F185: ノ | G185: + | H185: 米 | I185: + | J185: 田 | L185: ＝ | M185: =C185 -> 番 | P185: 0 | Q185: 0 | T185: 2103 | U185: 2.103 | V185: 週 | W185: 1 | AI185: 0 | AJ185: 0
A186: 2105 | B186: 2.105 | C186: 東 | D186: 1 | P186: 0 | Q186: 0 | T186: 2104 | U186: 2.104 | V186: 番 | W186: 3 | Y186: ノ | Z186: + | AA186: 米 | AB186: + | AC186: 田 | AE186: ＝ | AF186: 番 | AI186: 0 | AJ186: 0
A187: 2106 | B187: 2.106 | C187: 京 | D187: 1 | P187: 0 | Q187: 0 | T187: 2105 | U187: 2.105 | V187: 東 | W187: 1 | AI187: 0 | AJ187: 0
A188: 2107 | B188: 2.107 | C188: 古 | D188: 2 | F188: 十 | G188: + | H188: 口 | L188: ＝ | M188: =C188 -> 古 | P188: 0 | Q188: 0 | T188: 2106 | U188: 2.106 | V188: 京 | W188: 1 | AI188: 0 | AJ188: 0
A189: 2108 | B189: 2.108 | C189: 寺 | D189: 1 | P189: 0 | Q189: 0 | T189: 2107 | U189: 2.107 | V189: 古 | W189: 2 | Y189: 十 | Z189: + | AA189: 口 | AE189: ＝ | AF189: 古 | AI189: 0 | AJ189: 0
A190: 2109 | B190: 2.109 | C190: 西 | D190: 1 | P190: 0 | Q190: 0 | T190: 2108 | U190: 2.108 | V190: 寺 | W190: 1 | AI190: 0 | AJ190: 0
A191: 2110 | B191: 2.11 | C191: 止 | D191: 1 | P191: 0 | Q191: 0 | T191: 2109 | U191: 2.109 | V191: 西 | W191: 1 | AI191: 0 | AJ191: 0
A192: 2111 | B192: 2.111 | C192: 道 | D192: 1 | P192: 0 | Q192: 0 | T192: 2110 | U192: 2.11 | V192: 止 | W192: 1 | AI192: 0 | AJ192: 0
A193: 2112 | B193: 2.112 | C193: 場 | D193: 1 | P193: 0 | Q193: 0 | T193: 2111 | U193: 2.111 | V193: 道 | W193: 1 | AI193: 0 | AJ193: 0
A194: =B194*1000 -> 2113 | B194: 2.113 | C194: 台 | D194: 2 | F194: ム | G194: + | H194: 口 | L194: ＝ | M194: =C194 -> 台 | P194: =IF(B194>N$1,0,D194) -> 0 | Q194: =IF(P194=2,B194,0) -> 0 | T194: 2112 | U194: 2.112 | V194: 場 | W194: 1 | AI194: 0 | AJ194: 0
A195: 2114 | B195: 2.114 | C195: 新 | D195: 1 | P195: 0 | Q195: 0 | T195: 2113 | U195: 2.113 | V195: 台 | W195: 2 | Y195: ム | Z195: + | AA195: 口 | AE195: ＝ | AF195: 台 | AI195: 0 | AJ195: 0
A196: 2115 | B196: 2.115 | C196: 船 | D196: 1 | P196: 0 | Q196: 0 | T196: 2114 | U196: 2.114 | V196: 新 | W196: 1 | AI196: 0 | AJ196: 0
A197: 2116 | B197: 2.116 | C197: 米 | D197: 1 | P197: 0 | Q197: 0 | T197: 2115 | U197: 2.115 | V197: 船 | W197: 1 | AI197: 0 | AJ197: 0
A198: 2117 | B198: 2.117 | C198: 秋 | D198: 3 | F198: ノ | G198: + | H198: 木 | I198: + | J198: 火 | L198: ＝ | M198: =C198 -> 秋 | P198: 0 | Q198: 0 | T198: 2116 | U198: 2.116 | V198: 米 | W198: 1 | AI198: 0 | AJ198: 0
A199: 2118 | B199: 2.118 | C199: 合 | D199: 1 | P199: 0 | Q199: 0 | T199: 2117 | U199: 2.117 | V199: 秋 | W199: 3 | Y199: ノ | Z199: + | AA199: 木 | AB199: + | AC199: 火 | AE199: ＝ | AF199: 秋 | AI199: 0 | AJ199: 0
A200: 2119 | B200: 2.119 | C200: 活 | D200: 1 | P200: 0 | Q200: 0 | T200: 2118 | U200: 2.118 | V200: 合 | W200: 1 | AI200: 0 | AJ200: 0
... 830 more rows

Sheet Sheet1

Sheet データ
B1: 木 | C1: 目 | D1: 相 | E1: =INDEX($B$1:$B37,RANK(INDEX($H$1:$H$37,ROW(I1)),$H$1:$H$37)) -> 立 | F1: =INDEX($C$1:$C$37,RANK(INDEX($H$1:$H$37,ROW(C1)),$H$1:$H$37)) -> 市 | G1: =INDEX($D$1:$D$37,RANK(INDEX($H$1:$H$37,ROW(D1)),$H$1:$H$37)) -> 意 | H1: =RAND()/100 -> 0.008311177284
B2: 日 | C2: 宿 | D2: 暗 | E2: =INDEX($B$1:$B38,RANK(INDEX($H$1:$H$37,ROW(I2)),$H$1:$H$37)) -> 音 | F2: 十 | G2: 章 | H2: 0.004826399731
B3: 立 | C3: 市 | D3: 意 | E3: =INDEX($B$1:$B39,RANK(INDEX($H$1:$H$37,ROW(I3)),$H$1:$H$37)) -> 糸 | F3: 東 | G3: 練 | H3: 0.00324535354
B4: 木 | C4: 反 | D4: 板 | E4: =INDEX($B$1:$B40,RANK(INDEX($H$1:$H$37,ROW(I4)),$H$1:$H$37)) -> 竹 | F4: 寺 | G4: 等 | H4: 0.00135801118
B5: 糸 | C5: 少 | D5: 終 | E5: =INDEX($B$1:$B41,RANK(INDEX($H$1:$H$37,ROW(I5)),$H$1:$H$37)) -> 木 | F5: 反 | G5: 板 | H5: 0.007790760685
B6: 言 | C6: 女 | D6: 詩 | E6: =INDEX($B$1:$B42,RANK(INDEX($H$1:$H$37,ROW(I6)),$H$1:$H$37)) -> 木 | F6: 司 | G6: 横 | H6: 0.0007623212043
B7: 日 | C7: 者 | D7: 暑 | E7: =INDEX($B$1:$B43,RANK(INDEX($H$1:$H$37,ROW(I7)),$H$1:$H$37)) -> 日 | F7: 宿 | G7: 暗 | H7: 0.009030715116
B8: 音 | C8: 十 | D8: 章 | E8: =INDEX($B$1:$B44,RANK(INDEX($H$1:$H$37,ROW(I8)),$H$1:$H$37)) -> 木 | F8: 目 | G8: 相 | H8: 0.009124927179
B9: 木 | C9: 直 | D9: 植 | E9: =INDEX($B$1:$B45,RANK(INDEX($H$1:$H$37,ROW(I9)),$H$1:$H$37)) -> 火 | F9: 田 | G9: 畑 | H9: 0.001991740818
B10: 相 | C10: 心 | D10: 想 | E10: =INDEX($B$1:$B46,RANK(INDEX($H$1:$H$37,ROW(I10)),$H$1:$H$37)) -> 自 | F10: 心 | G10: 息 | H10: 0.003788359891
B11: 自 | C11: 心 | D11: 息 | E11: =INDEX($B$1:$B47,RANK(INDEX($H$1:$H$37,ROW(I11)),$H$1:$H$37)) -> 門 | F11: 口 | G11: 問 | H11: 0.001180722629
B12: 羽 | C12: 心 | D12: 習 | E12: =INDEX($B$1:$B48,RANK(INDEX($H$1:$H$37,ROW(I12)),$H$1:$H$37)) -> 木 | F12: 直 | G12: 植 | H12: 0.004457589702
B13: 糸 | C13: 東 | D13: 練 | E13: =INDEX($B$1:$B49,RANK(INDEX($H$1:$H$37,ROW(I13)),$H$1:$H$37)) -> 立 | F13: 里 | G13: 童 | H13: 0.0006212283245
B14: 竹 | C14: 相 | D14: 箱 | E14: =INDEX($B$1:$B50,RANK(INDEX($H$1:$H$37,ROW(I14)),$H$1:$H$37)) -> 相 | F14: 心 | G14: 想 | H14: 0.004251048381
B15: 火 | C15: 田 | D15: 畑 | E15: =INDEX($B$1:$B51,RANK(INDEX($H$1:$H$37,ROW(I15)),$H$1:$H$37)) -> 糸 | F15: 少 | G15: 終 | H15: 0.006979901801
B16: 竹 | C16: 寺 | D16: 等 | E16: =INDEX($B$1:$B52,RANK(INDEX($H$1:$H$37,ROW(I16)),$H$1:$H$37)) -> 日 | F16: 者 | G16: 暑 | H16: 0.005239862377
B17: 門 | C17: 口 | D17: 問 | E17: =INDEX($B$1:$B53,RANK(INDEX($H$1:$H$37,ROW(I17)),$H$1:$H$37)) -> 竹 | F17: 相 | G17: 箱 | H17: 0.001998374817
B18: 木 | C18: 司 | D18: 横 | E18: =INDEX($B$1:$B54,RANK(INDEX($H$1:$H$37,ROW(I18)),$H$1:$H$37)) -> 言 | F18: 女 | G18: 詩 | H18: 0.005631849807
B19: 立 | C19: 里 | D19: 童 | E19: =INDEX($B$1:$B55,RANK(INDEX($H$1:$H$37,ROW(I19)),$H$1:$H$37)) -> 羽 | F19: 心 | G19: 習 | H19: 0.003466489163
B21: =C21*1000 -> 6000 | C21: 6 | D21: 警 | G21: 敬 | H21: + | I21: 言 | M21: ＝ | N21: =D21 -> 警
B22: 6000 | C22: 6 | D22: 系 | G22: ノ | H22: + | I22: 糸 | M22: ＝ | N22: 系
B23: 6001 | C23: 6.001 | D23: 視 | G23: ネ | H23: + | I23: 見 | M23: ＝ | N23: 視
B24: 6003 | C24: 6.003 | D24: 砂 | G24: 石 | H24: + | I24: 少 | M24: ＝ | N24: 砂
B25: 6010 | C25: 6.01 | D25: 異 | G25: 田 | H25: + | I25: 共 | M25: ＝ | N25: 異
B26: 6013 | C26: 6.013 | D26: 背 | G26: 北 | H26: + | I26: 月 | M26: ＝ | N26: 背
B27: 6014 | C27: 6.014 | D27: 舌 | G27: ノ | H27: + | I27: 古 | M27: ＝ | N27: 舌
B28: 6019 | C28: 6.019 | D28: 訪 | G28: 言 | H28: + | I28: 方 | M28: ＝ | N28: 訪
B29: 6027 | C29: 6.027 | D29: 恩 | G29: 因 | H29: + | I29: 心 | M29: ＝ | N29: 恩
B30: 6031 | C30: 6.031 | D30: 臓 | G30: 月 | H30: + | I30: 蔵 | M30: ＝ | N30: 臓
B31: 6032 | C31: 6.032 | D31: 肺 | G31: 月 | H31: + | I31: 市 | M31: ＝ | N31: 肺
B32: 6033 | C32: 6.033 | D32: 胃 | G32: 田 | H32: + | I32: 月 | M32: ＝ | N32: 胃
B33: 6035 | C33: 6.035 | D33: 映 | G33: 日 | H33: + | I33: 央 | M33: ＝ | N33: 映
B34: 6040 | C34: 6.04 | D34: 私 | G34: ノ | H34: + | I34: 木 | J34: + | K34: ム | M34: ＝ | N34: 私
B35: 6047 | C35: 6.047 | D35: 簡 | G35: 竹 | H35: + | I35: 間 | M35: ＝ | N35: 簡
B36: 6063 | C36: 6.063 | D36: 警 | G36: 敬 | H36: + | I36: 言 | M36: ＝ | N36: 警
B37: 6067 | C37: 6.067 | D37: 訳 | G37: 言 | H37: + | I37: 尺 | M37: ＝ | N37: 訳
B38: 6071 | C38: 6.071 | D38: 討 | G38: 言 | H38: + | I38: 寸 | M38: ＝ | N38: 討
B39: 6072 | C39: 6.072 | D39: 供 | G39: イ | H39: + | I39: 共 | M39: ＝ | N39: 供
B40: 6080 | C40: 6.08 | D40: 姿 | G40: 次 | H40: + | I40: 女 | M40: ＝ | N40: 姿
B41: 6089 | C41: 6.089 | D41: 誌 | G41: 言 | H41: + | I41: 志 | M41: ＝ | N41: 誌
B42: 6094 | C42: 6.094 | D42: 納 | G42: 次 | H42: + | I42: 女 | M42: ＝ | N42: 納
B43: 6096 | C43: 6.096 | D43: 忠 | G43: 中 | H43: + | I43: 心 | M43: ＝ | N43: 忠
B44: 6097 | C44: 6.097 | D44: 誠 | G44: 言 | H44: + | I44: 成 | M44: ＝ | N44: 誠
B45: 6098 | C45: 6.098 | D45: 縦 | G45: 糸 | H45: + | I45: 従 | M45: ＝ | N45: 縦
B46: 6100 | C46: 6.1 | D46: 蚕 | G46: 天 | H46: + | I46: 虫 | M46: ＝ | N46: 蚕
B47: 6101 | C47: 6.101 | D47: 仁 | G47: イ | H47: + | I47: 二 | M47: ＝ | N47: 仁
B48: 6102 | C48: 6.102 | D48: 泉 | G48: 白 | H48: + | I48: 水 | M48: ＝ | N48: 泉
B49: 6103 | C49: 6.103 | D49: 系 | G49: ノ | H49: + | I49: 糸 | M49: ＝ | N49: 系
B50: 6104 | C50: 6.104 | D50: 盟 | G50: 明 | H50: + | I50: 皿 | M50: ＝ | N50: 盟
B51: 6107 | C51: 6.107 | D51: 縮 | G51: 糸 | H51: + | I51: 宿 | M51: ＝ | N51: 縮
B52: 6112 | C52: 6.112 | D52: 晩 | G52: 日 | H52: + | I52: 免 | M52: ＝ | N52: 晩
B53: =C53*1000 -> 6118 | C53: 6.118 | D53: 閉 | G53: 門 | H53: + | I53: 才 | M53: ＝ | N53: =D53 -> 閉
B54: 6120 | C54: 6.12 | D54: 翌 | G54: 羽 | H54: + | I54: 立 | M54: ＝ | N54: 翌
B55: 6122 | C55: 6.122 | D55: 班 | G55: 王 | H55: + | I55: リ | J55: + | K55: 王 | M55: ＝ | N55: 班
B56: 6126 | C56: 6.126 | D56: 否 | G56: 不 | H56: + | I56: 口 | M56: ＝ | N56: 否
B57: 6130 | C57: 6.13 | D57: 至 | G57: 一 | H57: + | I57: ム | J57: + | K57: 土 | M57: ＝ | N57: 至
B58: 6131 | C58: 6.131 | D58: 紅 | G58: 糸 | H58: + | I58: 工 | M58: ＝ | N58: 紅
B59: 6132 | C59: 6.132 | D59: 筋 | G59: 竹 | H59: + | I59: 月 | J59: + | K59: 力 | M59: ＝ | N59: 筋
B60: 6133 | C60: 6.133 | D60: 盛 | G60: 成 | H60: + | I60: 皿 | M60: ＝ | N60: 盛
B61: 6141 | C61: 6.141 | D61: 秘 | G61: ノ | H61: + | I61: 木 | J61: + | K61: 必 | M61: ＝ | N61: 秘
B62: 6147 | C62: 6.147 | D62: 絹 | G62: 糸 | H62: + | I62: 口 | J62: + | K62: 月 | M62: ＝ | N62: 絹
B63: 6148 | C63: 6.148 | D63: 俵 | G63: イ | H63: + | I63: 表 | M63: ＝ | N63: 俵
B64: 6150 | C64: 6.15 | D64: 聖 | G64: 耳 | H64: + | I64: 口 | J64: + | K64: 王 | M64: ＝ | N64: 聖
B65: 6151 | C65: 6.151 | D65: 賃 | G65: 任 | H65: + | I65: 貝 | M65: ＝ | N65: 賃
B66: 6155 | C66: 6.155 | D66: 鋼 | G66: 金 | H66: + | I66: 岡 | M66: ＝ | N66: 鋼
B67: 6166 | C67: 6.166 | D67: 欲 | G67: 谷 | H67: + | I67: 欠 | M67: ＝ | N67: 欲
B68: 6167 | C68: 6.167 | D68: 誕 | G68: 言 | H68: + | I68: 延 | M68: ＝ | N68: 誕
B69: 6171 | C69: 6.171 | D69: 諸 | G69: 言 | H69: + | I69: 者 | M69: ＝ | N69: 諸
B70: 6174 | C70: 6.174 | D70: 皇 | G70: 白 | H70: + | I70: 王 | M70: ＝ | N70: 皇
B71: 6179 | C71: 6.179 | D71: 閣 | G71: 門 | H71: + | I71: 各 | M71: ＝ | N71: 閣
B72: 6182 | C72: 6.182 | D72: 詞 | G72: 言 | H72: + | I72: 司 | M72: ＝ | N72: 詞
B73: 6184 | C73: 6.184 | D73: 値 | G73: 言 | H73: + | I73: 直 | M73: ＝ | N73: 値
B74: 6185 | C74: 6.185 | D74: 俳 | G74: イ | H74: + | I74: 非 | M74: ＝ | N74: 俳
B75: 6187 | C75: 6.187 | D75: 針 | G75: 金 | H75: + | I75: 十 | M75: ＝ | N75: 針
B76: 5002 | C76: 5.002 | D76: 現 | G76: 王 | H76: + | I76: 見 | M76: ＝ | N76: 現
B77: 5006 | C77: 5.006 | D77: 似 | G77: イ | H77: + | I77: 以 | M77: ＝ | N77: 似
B78: 5007 | C78: 5.007 | D78: 格 | G78: 木 | H78: + | I78: 各 | M78: ＝ | N78: 格
B79: 5016 | C79: 5.016 | D79: 許 | G79: 言 | H79: + | I79: 午 | M79: ＝ | N79: 許
B80: 5019 | C80: 5.019 | D80: 銅 | G80: 金 | H80: + | I80: 同 | M80: ＝ | N80: 銅
B81: 5025 | C81: 5.025 | D81: 移 | G81: ノ | H81: + | I81: 木 | J81: + | K81: 多 | M81: ＝ | N81: 移
B82: 5032 | C82: 5.032 | D82: 告 | G82: ノ | H82: + | I82: 土 | J82: + | K82: 口 | M82: ＝ | N82: 告
B83: 5052 | C83: 5.052 | D83: 略 | G83: 田 | H83: + | I83: 各 | M83: ＝ | N83: 略
B84: 5054 | C84: 5.054 | D84: 禁 | G84: 木 | H84: + | I84: 示 | M84: ＝ | N84: 禁
B85: =C85*1000 -> 5055 | C85: 5.055 | D85: 貸 | G85: 代 | H85: + | I85: 貝 | M85: ＝ | N85: =D85 -> 貸
B86: 5059 | C86: 5.059 | D86: 桜 | G86: 木 | H86: + | I86: ツ | J86: + | K86: 女 | M86: ＝ | N86: 桜
B87: 5061 | C87: 5.061 | D87: 資 | G87: 次 | H87: + | I87: 貝 | M87: ＝ | N87: 資
B88: 5067 | C88: 5.067 | D88: 総 | G88: 糸 | H88: + | I88: 公 | J88: + | K88: 心 | M88: ＝ | N88: 総
B89: 5077 | C89: 5.077 | D89: 績 | G89: 糸 | H89: + | I89: 公 | J89: + | M89: ＝ | N89: 績
B90: 5078 | C90: 5.078 | D90: 鉱 | G90: 金 | H90: + | I90: 広 | J90: + | M90: ＝ | N90: 鉱
B91: 5079 | C91: 5.079 | D91: 製 | G91: 制 | H91: + | I91: 衣 | J91: + | M91: ＝ | N91: 製
B92: 5083 | C92: 5.083 | D92: 絶 | G92: 制 | H92: + | I92: 衣 | J92: + | M92: ＝ | N92: 絶
B93: 5084 | C93: 5.084 | D93: 張 | G93: 弓 | H93: + | I93: 長 | J93: + | M93: ＝ | N93: 張
B94: 5085 | C94: 5.085 | D94: 破 | G94: 石 | H94: + | I94: 皮 | J94: + | M94: ＝ | N94: 破
B95: 5091 | C95: 5.091 | D95: 示 | G95: 二 | H95: + | I95: 小 | M95: ＝ | N95: 示
B96: 5098 | C96: 5.098 | D96: 史 | G96: 口 | H96: + | I96: 人 | M96: ＝ | N96: 史
B97: 5103 | C97: 5.103 | D97: 個 | G97: イ | H97: + | I97: 固 | M97: ＝ | N97: 個
B98: 5107 | C98: 5.107 | D98: 仏 | G98: イ | H98: + | I98: ム | M98: ＝ | N98: 仏
B99: 5109 | C99: 5.109 | D99: 財 | G99: 貝 | H99: + | I99: 才 | M99: ＝ | N99: 財
B100: 5111 | C100: 5.111 | D100: 謝 | G100: 言 | H100: + | I100: 射 | M100: ＝ | N100: 謝
B101: 5113 | C101: 5.113 | D101: 志 | G101: 士 | H101: + | I101: 心 | M101: ＝ | N101: 志
B102: 5119 | C102: 5.119 | D102: 精 | G102: 米 | H102: + | I102: 青 | M102: ＝ | N102: 精
B103: 5120 | C103: 5.12 | D103: 保 | G103: イ | H103: + | I103: 口 | J103: + | K103: 木 | M103: ＝ | N103: 保
B104: 5123 | C104: 5.123 | D104: 件 | G104: イ | H104: + | I104: 牛 | M104: ＝ | N104: 件
B105: 5125 | C105: 5.125 | D105: 評 | G105: イ | H105: + | I105: 平 | M105: ＝ | N105: 評
B106: 5129 | C106: 5.129 | D106: 賛 | G106: 夫 | H106: + | I106: 夫 | J106: + | K106: 平 | M106: ＝ | N106: 賛
B107: 5130 | C107: 5.13 | D107: 効 | G107: 交 | H107: + | I107: 力 | M107: ＝ | N107: 効
B108: 5138 | C108: 5.138 | D108: 証 | G108: 言 | H108: + | I108: 正 | M108: ＝ | N108: 証
B109: 5148 | C109: 5.148 | D109: 仮 | G109: イ | H109: + | I109: 反 | M109: ＝ | N109: 仮
B110: 5153 | C110: 5.153 | D110: 規 | G110: 夫 | H110: + | I110: 見 | M110: ＝ | N110: 規
B111: 5162 | C111: 5.162 | D111: 貧 | G111: 分 | H111: + | I111: 貝 | M111: ＝ | N111: 貧
B112: 5184 | C112: 5.184 | D112: 粉 | G112: 米 | H112: + | I112: 分 | M112: ＝ | N112: 粉
B113: 5186 | C113: 5.186 | D113: 豊 | G113: 曲 | H113: + | I113: 豊 | M113: ＝ | N113: 豊
B114: 5192 | C114: 5.192 | D114: 導 | G114: 道 | H114: + | I114: 寸 | M114: ＝ | N114: 導
